fUSD/lending_fUSD_20241225
["ID","MTS","AMOUNT","RATE_DAILY","PERIOD"]
[346574070,1735107047538,-159.85826717,0.00011996,2]
[346574071,1735107047547,-800.52,0.00011996,2]
[346574072,1735107047557,-1066.99,0.00011996,2]
[346574073,1735107047566,-504.57679449,0.00011996,2]
[346574074,1735107047575,-500.0,0.00011996,2]
[346574075,1735107047584,-500.0,0.00011996,2]
[346574076,1735107047594,-500.0,0.00011996,2]
[346574077,1735107047603,-500.0,0.00011996,2]
[346574078,1735107047612,-1289.25199788,0.00011996,2]
[346574079,1735107047625,-183.78800212,0.00011996,2]
[346574080,1735107047634,-418.21199788,0.00011996,2]
[346574081,1735107047646,-81.78800212,0.00011996,2]
[346574082,1735107047655,-500.0,0.00011996,2]
[346574083,1735107047664,-690.91,0.00011996,2]
[346574084,1735107047674,-500.0,0.00011996,2]
[346574085,1735107047684,-876.9,0.00011996,2]
[346574086,1735107047693,-1400.35,0.00011996,2]
[346574087,1735107047703,-500.0,0.00011996,2]
[346574088,1735107047712,-500.0,0.00011996,2]
[346574089,1735107047722,-500.0,0.00011996,2]
[346574090,1735107047732,-702.95,0.00011996,2]
[346574091,1735107047742,-502.32174816,0.00011996,2]
[346574092,1735107047752,-500.0,0.00011996,2]
[346574093,1735107047762,-822.56,0.00011996,2]
[346574094,1735107047771,-500.0,0.00011996,2]
[346574095,1735107047781,-409.90119202,0.00011996,2]
[346574096,1735107047813,-90.09880798,0.00011996,2]
[346574097,1735107047823,-2385.39,0.00011996,2]
[346574098,1735107047833,-502.29285995,0.00011996,2]
[346574099,1735107047842,-500.86375513,0.00011996,2]
[346574100,1735107047851,-500.0,0.00011996,2]
[346574101,1735107047861,-786.63,0.00011996,2]
[346574102,1735107047870,-1023.16,0.00011996,2]
[346574103,1735107047879,-600.24,0.00011996,2]
[346574104,1735107047889,-508.38,0.00011996,2]
[346574105,1735107047899,-500.0,0.00011996,2]
[346574106,1735107047907,-500.0,0.00011996,2]
[346574107,1735107047916,-500.0,0.00011996,2]
[346574108,1735107047925,-2928.99,0.00011996,2]
[346574109,1735107047934,-792.87,0.00011996,2]
[346574110,1735107047942,-1060.01,0.00011996,2]
[346574111,1735107047952,-500.0,0.00011996,2]
[346574112,1735107047961,-1472.2,0.00011996,2]
[346574113,1735107047971,-500.0,0.00011996,2]
[346574114,1735107047981,-500.0,0.00011996,2]
[346574115,1735107047990,-500.0,0.00011996,2]
[346574116,1735107048000,-500.0,0.00011996,2]
[346574117,1735107048010,-500.0,0.00011996,2]
[346574118,1735107048019,-500.0,0.00011996,2]
[346574119,1735107048029,-506.1708129,0.00011996,2]
[346574120,1735107048038,-1640.09,0.00011996,2]
[346574121,1735107048048,-728.21,0.00011996,2]
[346574122,1735107048057,-1509.12,0.00011996,2]
[346574123,1735107048066,-1639.32,0.00011996,2]
[346574124,1735107048075,-500.0,0.00011996,2]
[346574125,1735107048085,-2008.31,0.00011996,2]
[346574126,1735107048094,-1459.95,0.00011996,2]
[346574127,1735107048104,-1059.65,0.00011996,2]
[346574128,1735107048113,-500.0,0.00011996,2]
[346574129,1735107048122,-500.0,0.00011996,2]
[346574130,1735107048131,-500.0,0.00011996,2]
[346574131,1735107048142,-500.0,0.00011996,2]
[346574132,1735107048151,-7306.86,0.00011996,2]
[346574133,1735107048160,-500.0,0.00011996,2]
[346574134,1735107048175,-1607.86,0.00011996,2]
[346574135,1735107048185,-3180.92,0.00011996,2]
[346574136,1735107048195,-500.0,0.00011996,2]
[346574137,1735107048204,-5806.6,0.00011996,2]
[346574138,1735107048214,-11314.39,0.00011996,2]
[346574139,1735107048224,-500.0,0.00011996,2]
[346574140,1735107048234,-500.0,0.00011996,2]
[346574141,1735107048243,-500.0,0.00011996,2]
[346574142,1735107048252,-10717.55,0.00011996,2]
[346574143,1735107048260,-1258.34,0.00011996,2]
[346574144,1735107048270,-500.0,0.00011996,2]
[346574145,1735107048280,-793.05,0.00011996,2]
[346574146,1735107048289,-987.98,0.00011996,2]
[346574147,1735107048300,-11795.99,0.00011996,2]
[346574148,1735107048309,-511.66809944,0.00011996,2]
[346574149,1735107048318,-1973.5,0.00011996,2]
[346574150,1735107048328,-3094.15,0.00011996,2]
[346574151,1735107048338,-414.71807598,0.00011996,2]
[346574152,1735107048347,-500.0,0.00011996,2]
[346574153,1735107048356,-500.0,0.00011996,2]
[346574154,1735107048365,-500.0,0.00011996,2]
[346574155,1735107048375,-500.0,0.00011996,2]
[346574156,1735107048384,-1068.1,0.00011996,2]
[346574157,1735107048393,-1463.43,0.00011996,2]
[346574158,1735107048402,-669.06,0.00011996,2]
[346574159,1735107048412,-500.0,0.00011996,2]
[346574160,1735107048421,-500.0,0.00011996,2]
[346574161,1735107048431,-968.3,0.00011996,2]
[346574162,1735107048440,-2555.96,0.00011996,2]
[346574163,1735107048451,-500.0,0.00011996,2]
[346574164,1735107048461,-4272.58,0.00011996,2]
[346574165,1735107048471,-505.96552169,0.00011996,2]
[346574166,1735107048480,-500.0,0.00011996,2]
[346574167,1735107048490,-513.77,0.00011996,2]
[346574168,1735107048499,-936.88,0.00011996,2]
[346574169,1735107048509,-751.17,0.00011996,2]
[346574170,1735107048518,-2667.79,0.00011996,2]
[346574171,1735107048527,-341.96065752,0.00011996,2]
[346574172,1735107048537,-10186.88,0.00011996,2]
[346574173,1735107048546,-592.97,0.00011996,2]
[346574174,1735107048556,-1105.17,0.00011996,2]
[346574175,1735107048565,-500.0,0.00011996,2]
[346574176,1735107048574,-697.49,0.00011996,2]
[346574177,1735107048583,-551.2,0.00011996,2]
[346574178,1735107048592,-500.0,0.00011996,2]
[346574179,1735107048786,-499.23290819,0.00011996,2]
[346574180,1735107048812,-500.0,0.00011996,2]
[346574181,1735107048821,-756.57,0.00011996,2]
[346574182,1735107048830,-500.0,0.00011996,2]
[346574183,1735107048839,-1094.12,0.00011996,2]
[346574184,1735107048848,-2476.6,0.00011996,2]
[346574185,1735107048858,-500.0,0.00011996,2]
[346574186,1735107048868,-1418.32,0.00011996,2]
[346574187,1735107048877,-1678.55,0.00011996,2]
[346574188,1735107048886,-500.0,0.00011996,2]
[346574189,1735107048895,-500.0,0.00011996,2]
[346574190,1735107048905,-500.0,0.00011996,2]
[346574191,1735107048914,-660.68,0.00011996,2]
[346574192,1735107048923,-500.0,0.00011996,2]
[346574193,1735107048932,-1811.63,0.00011996,2]
[346574194,1735107048941,-713.62,0.00011996,2]
[346574195,1735107048950,-1033.6,0.00011996,2]
[346574196,1735107048959,-500.0,0.00011996,2]
[346574197,1735107048969,-500.0,0.00011996,2]
[346574198,1735107048979,-516.34,0.00011996,2]
[346574199,1735107048989,-570.53015501,0.00011996,2]
[346574200,1735107048998,-3907.74,0.00011996,2]
[346574201,1735107049008,-1035.4,0.00011996,2]
[346574202,1735107049018,-500.0,0.00011996,2]
[346574203,1735107049027,-550.8,0.00011996,2]
[346574204,1735107049037,-1814.08,0.00011996,2]
[346574205,1735107049046,-1664.22,0.00011996,2]
[346574206,1735107049055,-4060.81,0.00011996,2]
[346574207,1735107049065,-500.0,0.00011996,2]
[346574208,1735107049075,-500.0,0.00011996,2]
[346574209,1735107049084,-500.0,0.00011996,2]
[346574210,1735107049094,-2678.02,0.00011996,2]
[346574211,1735107049103,-1758.85,0.00011996,2]
[346574212,1735107049113,-500.0,0.00011996,2]
[346574213,1735107049123,-909.9,0.00011996,2]
[346574214,1735107049132,-4429.17,0.00011996,2]
[346574215,1735107049143,-500.0,0.00011996,2]
[346574216,1735107049152,-3290.75,0.00011996,2]
[346574217,1735107049162,-1130.02,0.00011996,2]
[346574218,1735107049176,-1628.53,0.00011996,2]
[346574219,1735107049186,-823.25,0.00011996,2]
[346574220,1735107049195,-3779.88,0.00011996,2]
[346574221,1735107049204,-500.0,0.00011996,2]
[346574222,1735107049214,-541.31,0.00011996,2]
[346574223,1735107049224,-500.0,0.00011996,2]
[346574224,1735107049234,-2421.41,0.00011996,2]
[346574225,1735107049244,-625.25,0.00011996,2]
[346574226,1735107049254,-1262.05,0.00011996,2]
[346574227,1735107049264,-3280.4,0.00011996,2]
[346574228,1735107049273,-500.0,0.00011996,2]
[346574229,1735107049283,-500.0,0.00011996,2]
[346574230,1735107049293,-500.0,0.00011996,2]
[346574231,1735107049303,-1099.53,0.00011996,2]
[346574232,1735107049313,-1761.11,0.00011996,2]
[346574233,1735107049323,-512.83823174,0.00011996,2]
[346574234,1735107049332,-1458.05,0.00011996,2]
[346574235,1735107049342,-4817.66,0.00011996,2]
[346574236,1735107049351,-5376.46,0.00011996,2]
[346574237,1735107049360,-514.13410663,0.00011996,2]
[346574238,1735107049369,-500.0,0.00011996,2]
[346574239,1735107049378,-895.72,0.00011996,2]
[346574240,1735107049388,-692.09,0.00011996,2]
[346574241,1735107049397,-5577.8,0.00011996,2]
[346574242,1735107049406,-3805.89,0.00011996,2]
[346574243,1735107049415,-1741.29,0.00011996,2]
[346574244,1735107049425,-500.0,0.00011996,2]
[346574245,1735107049434,-500.0,0.00011996,2]
[346574246,1735107049444,-6658.4,0.00011996,2]
[346574247,1735107049454,-6658.4,0.00011996,2]
[346574248,1735107049463,-500.0,0.00011996,2]
[346574249,1735107049474,-8870.26,0.00011996,2]
[346574250,1735107049483,-5321.94,0.00011996,2]
[346574251,1735107049494,-1640.78,0.00011996,2]
[346574252,1735107049503,-500.0,0.00011996,2]
[346574253,1735107049513,-500.0,0.00011996,2]
[346574254,1735107049522,-5528.35,0.00011996,2]
[346574255,1735107049531,-500.0,0.00011996,2]
[346574256,1735107049541,-500.0,0.00011996,2]
[346574257,1735107049550,-11191.66,0.00011996,2]
[346574258,1735107049559,-500.0,0.00011996,2]
[346574259,1735107049568,-500.0,0.00011996,2]
[346574260,1735107049578,-500.0,0.00011996,2]
[346574261,1735107049587,-509.13268035,0.00011996,2]
[346574262,1735107049596,-500.0,0.00011996,2]
[346574263,1735107049605,-10618.44,0.00011996,2]
[346574264,1735107049614,-500.0,0.00011996,2]
[346574265,1735107049624,-500.0,0.00011996,2]
[346574266,1735107049633,-64668.93,0.00011996,2]
[346574267,1735107049642,-500.0,0.00011996,2]
[346574268,1735107049651,-500.0,0.00011996,2]
[346574269,1735107049660,-500.0,0.00011996,2]
[346574270,1735107049669,-500.0,0.00011996,2]
[346574271,1735107049678,-500.0,0.00011996,2]
[346574272,1735107049687,-755.93,0.00011996,2]
[346574273,1735107049696,-1954.86,0.00011996,2]
[346574274,1735107049706,-500.0,0.00011996,2]
[346574275,1735107049715,-501.09096012,0.00011996,2]
[346574276,1735107049725,-500.0,0.00011996,2]
[346574277,1735107049734,-500.0,0.00011996,2]
[346574278,1735107049743,-2687.57,0.00011996,2]
[346574279,1735107049752,-500.0,0.00011996,2]
[346574280,1735107049761,-940.25,0.00011996,2]
[346574281,1735107049770,-728.04,0.00011996,2]
[346574282,1735107049779,-8260.06,0.00011996,2]
[346574283,1735107049788,-500.0,0.00011996,2]
[346574284,1735107049798,-500.0,0.00011996,2]
[346574285,1735107049808,-2020.89,0.00011996,2]
[346574286,1735107049817,-537.17930202,0.00011996,2]
[346574287,1735107049826,-538.0,0.00011996,2]
[346574288,1735107049836,-6434.34,0.00011996,2]
[346574289,1735107049846,-1332.6,0.00011996,2]
[346574290,1735107049855,-13533.14,0.00011996,2]
[346574291,1735107049865,-500.0,0.00011996,2]
[346574292,1735107049874,-4674.79,0.00011996,2]
[346574293,1735107049883,-500.0,0.00011996,2]
[346574294,1735107049892,-500.0,0.00011996,2]
[346574295,1735107049902,-500.0,0.00011996,2]
[346574296,1735107049911,-500.0,0.00011996,2]
[346574297,1735107049920,-11725.37,0.00011996,2]
[346574298,1735107049933,-10404.36,0.00011996,2]
[346574299,1735107049942,-500.0,0.00011996,2]
[346574300,1735107049952,-500.0,0.00011996,2]
[346574301,1735107049962,-561.66,0.00011996,2]
[346574302,1735107049972,-676.19,0.00011996,2]
[346574303,1735107049981,-777.5,0.00011996,2]
[346574304,1735107049991,-2187.45,0.00011996,2]
[346574305,1735107050000,-3004.68,0.00011996,2]
[346574306,1735107050009,-2708.77,0.00011996,2]
[346574307,1735107050019,-500.0,0.00011996,2]
[346574308,1735107050029,-583.55,0.00011996,2]
[346574309,1735107050039,-500.0,0.00011996,2]
[346574310,1735107050049,-501.6255508,0.00011996,2]
[346574311,1735107050058,-500.0,0.00011996,2]
[346574312,1735107050068,-500.0,0.00011996,2]
[346574313,1735107050077,-500.0,0.00011996,2]
[346574314,1735107050087,-9628.34,0.00011996,2]
[346574315,1735107050098,-500.0,0.00011996,2]
[346574316,1735107050107,-500.0,0.00011996,2]
[346574317,1735107050117,-500.0,0.00011996,2]
[346574318,1735107050127,-500.0,0.00011996,2]
[346574319,1735107050136,-3304.95,0.00011996,2]
[346574320,1735107050146,-292.73680715,0.00011996,2]
[346574321,1735107050155,-4694.64,0.00011996,2]
[346574322,1735107050165,-6818.44,0.00011996,2]
[346574323,1735107050177,-2397.15,0.00011996,2]
[346574324,1735107050186,-500.0,0.00011996,2]
[346574325,1735107050195,-540.35,0.00011996,2]
[346574326,1735107050204,-500.0,0.00011996,2]
[346574327,1735107050215,-920.32,0.00011996,2]
[346574328,1735107050224,-3894.74614704,0.00011996,2]
[346574329,1735107050243,-2049.27708235,0.00011996,2]
[346574330,1735107050362,-328.21891437,0.00011996,2]
[346574331,1735107050373,-500.0,0.00011996,2]
[346574332,1735107050384,-1865.90015416,0.00011996,2]
[346574333,1735107050395,-4910.85038656,0.00011996,2]
[346574335,1735107303950,159.0,0.00018,30]
[346574336,1735107304031,159.0,0.00018,30]
[346574337,1735107304594,163.0,0.00018,30]
[346574338,1735107304886,163.0,0.00018,30]
[346574339,1735107305326,163.0,0.00018,30]
[346574340,1735107305640,163.0,0.00018,30]
[346574341,1735107604495,159.0,0.00018,30]
[346574342,1735107604556,179.0,0.00018,30]
[346574343,1735107604631,179.0,0.00018,30]
[346574344,1735107900813,494.83,8.219e-05,2]
[346574345,1735107904188,171.0,0.00018,30]
[346574346,1735107904502,171.0,0.00018,30]
[346574347,1735107905179,159.54504546,0.00018,30]
[346574421,1735108203209,172.0,0.00018,30]
[346574439,1735108231864,-200.0,9.676e-05,2]
[346574440,1735108231875,-186.86,9.771e-05,2]
[346574441,1735108231884,-732.45,9.784e-05,2]
[346574442,1735108231895,-1000.0,9.797e-05,2]
[346574443,1735108231904,-1678.5331,9.81e-05,2]
[346574444,1735108231914,-178.63430208,9.819e-05,2]
[346574445,1735108231923,-699.27,9.819e-05,2]
[346574446,1735108231932,-178.63430206,9.865e-05,2]
[346574447,1735108231941,-423.38,9.898e-05,2]
[346574448,1735108231950,-178.63430206,9.91e-05,2]
[346574449,1735108231961,-27510.00791634,9.911e-05,2]
[346574450,1735108232010,-33472.99208366,9.911e-05,2]
[346574451,1735108232020,-23900.0,9.911e-05,2]
[346574452,1735108232029,-394.41,9.99e-05,2]
[346574453,1735108232038,-250.0,0.00010009,2]
[346574454,1735108232047,-19518.77,0.0001007,2]
[346574455,1735108232056,-1500.0,0.00010078,2]
[346574456,1735108232065,-232.85,0.00010137,2]
[346574457,1735108232075,-365.54,0.00010173,2]
[346574458,1735108232085,-250.0,0.00010224,2]
[346574459,1735108232095,-1852.42,0.00010275,2]
[346574460,1735108232104,-494.83,0.00010472,2]
[346574461,1735108232113,-169.42,0.00010595,2]
[346574462,1735108232123,-250.0,0.0001061,2]
[346574463,1735108232132,-166.24,0.0001061,2]
[346574464,1735108232142,-203.02,0.0001061,2]
[346574465,1735108232151,-200.6,0.0001061,2]
[346574466,1735108232161,-200.04,0.0001061,2]
[346574467,1735108232171,-203.39,0.0001061,2]
[346574468,1735108232181,-201.47,0.0001061,2]
[346574469,1735108232190,-203.07,0.0001061,2]
[346574470,1735108232199,-201.52,0.0001061,2]
[346574471,1735108232210,-203.83,0.0001061,2]
[346574472,1735108232219,-201.11,0.0001061,2]
[346574473,1735108232228,-203.16,0.0001061,2]
[346574474,1735108232238,-202.19,0.00010714,2]
[346574475,1735108232248,-1041.21,0.00010714,2]
[346574476,1735108232257,-202.62,0.0001076,2]
[346574477,1735108232266,-202.5,0.00010761,2]
[346574478,1735108232275,-200.74,0.00010763,2]
[346574479,1735108232284,-200.51,0.00010766,2]
[346574480,1735108232294,-200.57,0.00010772,2]
[346574482,1735108232303,-203.79,0.00010784,2]
[346574483,1735108232313,-200.35,0.00010807,2]
[346574485,1735108232323,-11511.32,0.00010812,2]
[346574487,1735108232332,-204.0,0.00010849,2]
[346574489,1735108232341,-203.86,0.00010859,2]
[346574491,1735108232350,-203.91,0.00010859,2]
[346574493,1735108232360,-201.79,0.00010859,2]
[346574495,1735108232369,-1150.31,0.00011018,2]
[346574496,1735108232379,-1000.0,0.00011022,2]
[346574497,1735108232388,-202.29,0.00011194,2]
[346574498,1735108232397,-203.92,0.00011194,2]
[346574499,1735108232406,-330.582,0.00011253,2]
[346574500,1735108232416,-1004.0,0.000114,2]
[346574501,1735108232425,-1000.0,0.000114,2]
[346574502,1735108232434,-1003.0,0.000114,2]
[346574503,1735108232443,-840.76,0.00011497,2]
[346574504,1735108232452,-5864.55,0.00011497,2]
[346574505,1735108232463,-1289.18,0.00011497,2]
[346574506,1735108232472,-997.5585,0.00011497,2]
[346574507,1735108232481,-9734.00803527,0.00011497,2]
[346574508,1735108232668,-4642.19576868,0.00011497,2]
[346574509,1735108232681,-566.64202395,0.00011497,2]
[346574510,1735108237964,-4460.4241721,0.00011497,2]
[346574511,1735108237974,-96.4401091,0.00011497,2]
[346574512,1735108237985,-1476.55,0.00011497,2]
[346574513,1735108237996,-5104.097172,0.00011497,2]
[346574683,1735108239745,-3728.9227189,0.00011497,2]
[346574686,1735108239755,-2759.59,0.00011497,2]
[346574689,1735108239764,-500.0,0.00011497,2]
[346574692,1735108239774,-7817.21,0.00011497,2]
[346574695,1735108239782,-500.0,0.00011497,2]
[346574698,1735108239791,-502.35,0.00011497,2]
[346574700,1735108239802,-882.1,0.00011497,2]
[346574702,1735108239812,-105.118623,0.00011497,2]
[346574709,1735108239864,-562.651377,0.00011497,2]
[346574711,1735108239875,-1922.93572545,0.00011497,2]
[346574730,1735108240048,-217.48427455,0.00011497,2]
[346574732,1735108240058,-210.95866035,0.00011497,2]
[346574734,1735108240069,-811.68133965,0.00011497,2]
[346574736,1735108240078,-757.71866034,0.00011497,2]
[346574739,1735108240090,-247.70133966,0.00011497,2]
[346574741,1735108240100,-52.80866035,0.00011497,2]
[346574743,1735108240112,-567.55133965,0.00011497,2]
[346574745,1735108240121,-2256.58,0.00011497,2]
[346574747,1735108240131,-964.71,0.00011497,2]
[346574749,1735108240141,-556.92939489,0.00011498,2]
[346574751,1735108240150,-2487.36,0.00011498,2]
[346574753,1735108240160,-1510.86,0.00011498,2]
[346574755,1735108240169,-786.26,0.00011498,2]
[346574757,1735108240178,-729.74926546,0.00011498,2]
[346574770,1735108240300,-3684.85073454,0.00011498,2]
[346574772,1735108240310,-6913.40331935,0.00011498,2]
[346574774,1735108240321,-764.75220241,0.00011498,2]
[346575050,1735108242990,-277.28785053,0.00011497,2]
[346575052,1735108242999,-1422.6170533,0.00011498,2]
[346575062,1735108243076,-2116.97344522,0.00011498,2]
[346575121,1735108245778,-200.14,0.00011497,2]
[346575122,1735108245788,-515.36,0.00011497,2]
[346575123,1735108245798,-2383.72,0.00011497,2]
[346575124,1735108245812,-4601.87397972,0.00011498,2]
[346575125,1735108245822,-1461.46,0.00011498,2]
[346575126,1735108245831,-1972.53,0.00011498,2]
[346575127,1735108245840,-6954.06,0.00011498,2]
[346575128,1735108245849,-2489.22,0.00011498,2]
[346575129,1735108245859,-154.497221,0.00011498,2]
[346575130,1735108245868,-156.144595,0.00011498,2]
[346575131,1735108245878,-2962.244913,0.00011498,2]
[346575132,1735108245887,-3286.79,0.00011498,2]
[346575133,1735108245897,-3007.307129,0.00011498,2]
[346575134,1735108245906,-1806.34,0.00011498,2]
[346575135,1735108245915,-2362.93,0.00011498,2]
[346575136,1735108245924,-6055.89,0.00011498,2]
[346575137,1735108245934,-3876.76,0.00011498,2]
[346575138,1735108245943,-2341.93,0.00011498,2]
[346575139,1735108245953,-18818.47859096,0.00011498,2]
[346575140,1735108245968,-5185.13140904,0.00011498,2]
[346575141,1735108245978,-1606.16,0.00011498,2]
[346575142,1735108245987,-500.0,0.00011498,2]
[346575143,1735108245996,-3724.0,0.00011498,2]
[346575144,1735108246006,-2194.2,0.00011498,2]
[346575145,1735108246016,-1969.55,0.00011498,2]
[346575146,1735108246025,-500.0,0.00011498,2]
[346575147,1735108246036,-3721.65,0.00011498,2]
[346575148,1735108246046,-3031.17,0.00011498,2]
[346575149,1735108246056,-5829.74,0.00011498,2]
[346575150,1735108246066,-4468.66,0.00011498,2]
[346575151,1735108246078,-3358.29,0.00011498,2]
[346575152,1735108246088,-6607.15,0.00011498,2]
[346575153,1735108246098,-1119.32,0.00011498,2]
[346575154,1735108246107,-3763.85,0.00011498,2]
[346575155,1735108246116,-5709.03,0.00011498,2]
[346575156,1735108246126,-8003.76,0.00011498,2]
[346575157,1735108246135,-11742.81,0.00011498,2]
[346575158,1735108246145,-3488.59,0.00011498,2]
[346575159,1735108246155,-4149.41,0.00011498,2]
[346575160,1735108246164,-20300.46,0.00011498,2]
[346575161,1735108246174,-2535.99,0.00011498,2]
[346575162,1735108246183,-4052.3,0.00011498,2]
[346575163,1735108246193,-14015.57,0.00011498,2]
[346575164,1735108246202,-20157.8,0.00011498,2]
[346575165,1735108246212,-1901.02,0.00011498,2]
[346575166,1735108246222,-1924.63,0.00011498,2]
[346575167,1735108246231,-2277.34,0.00011498,2]
[346575168,1735108246240,-1478.12,0.00011498,2]
[346575169,1735108246250,-5564.66,0.00011498,2]
[346575170,1735108246259,-21978.92,0.00011498,2]
[346575171,1735108246269,-753.5,0.00011498,2]
[346575172,1735108246279,-500.0,0.00011499,2]
[346575173,1735108246288,-1152.47,0.00011499,2]
[346575174,1735108246298,-757.55,0.00011499,2]
[346575175,1735108246307,-500.0,0.00011499,2]
[346575176,1735108246317,-758.39382411,0.00011499,2]
[346575177,1735108246348,-947.04617589,0.00011499,2]
[346575178,1735108246357,-9.65982411,0.00011499,2]
[346575179,1735108246415,-562.84017589,0.00011499,2]
[346575180,1735108246425,-500.0,0.00011499,2]
[346575181,1735108246435,-1009.44,0.00011499,2]
[346575182,1735108246444,-1098.53,0.00011499,2]
[346575183,1735108246454,-2719.66,0.00011499,2]
[346575184,1735108246463,-195.06760038,0.00011499,2]
[346575185,1735108246486,-479.66,0.00011499,2]
[346575187,1735108504899,172.27316309,0.00018,30]
[346575188,1735108526709,5706.88294805,0.00018,30]
[346575189,1735108711656,264.465,9.604e-05,2]
[346575190,1735108791454,1455238.44693292,9.3e-05,2]
[346575191,1735108812380,445.34,8.219e-05,2]
[346575199,1735109317636,273.36,8.953e-05,2]
[346575984,1735109432278,-300.0,9.711e-05,2]
[346575985,1735109432288,-156.27,9.761e-05,2]
[346575986,1735109432298,-156.27,9.764e-05,2]
[346575987,1735109432308,-156.27,9.767e-05,2]
[346575988,1735109432317,-156.27,9.77e-05,2]
[346575989,1735109432331,-47346.67080304,9.771e-05,2]
[346575990,1735109432341,-156.27,9.773e-05,2]
[346575991,1735109432350,-156.27,9.776e-05,2]
[346575992,1735109432360,-156.27,9.779e-05,2]
[346575993,1735109432370,-156.27,9.782e-05,2]
[346575994,1735109432380,-156.27,9.785e-05,2]
[346575995,1735109432390,-156.27,9.789e-05,2]
[346575996,1735109432399,-156.27,9.792e-05,2]
[346575997,1735109432408,-156.27,9.795e-05,2]
[346575998,1735109432418,-156.27,9.798e-05,2]
[346575999,1735109432427,-500.0,9.798e-05,2]
[346576000,1735109432437,-504.34212832,9.798e-05,2]
[346576001,1735109432446,-500.0,9.798e-05,2]
[346576002,1735109432455,-616.21480134,9.798e-05,2]
[346576003,1735109432464,-506.89546029,9.798e-05,2]
[346576004,1735109432474,-620.11,9.798e-05,2]
[346576005,1735109432483,-500.0,9.798e-05,2]
[346576006,1735109432492,-500.0,9.798e-05,2]
[346576007,1735109432502,-500.0,9.798e-05,2]
[346576008,1735109432511,-542.49,9.798e-05,2]
[346576009,1735109432521,-500.0,9.798e-05,2]
[346576010,1735109432530,-500.0,9.798e-05,2]
[346576011,1735109432540,-1005.2,9.798e-05,2]
[346576012,1735109432549,-500.0,9.798e-05,2]
[346576013,1735109432559,-505.66950131,9.798e-05,2]
[346576014,1735109432569,-500.0,9.798e-05,2]
[346576015,1735109432578,-500.0,9.798e-05,2]
[346576016,1735109432587,-199.24354807,9.798e-05,2]
[346576017,1735109432597,-500.0,9.798e-05,2]
[346576018,1735109432606,-816.04,9.798e-05,2]
[346576019,1735109432615,-500.0,9.798e-05,2]
[346576020,1735109432624,-500.0,9.798e-05,2]
[346576021,1735109432633,-500.0,9.798e-05,2]
[346576022,1735109432643,-516.74801089,9.798e-05,2]
[346576023,1735109432652,-500.0,9.798e-05,2]
[346576024,1735109432662,-500.0,9.798e-05,2]
[346576025,1735109432672,-290.09457523,9.798e-05,2]
[346576026,1735109432681,-500.0,9.798e-05,2]
[346576027,1735109432691,-500.0,9.798e-05,2]
[346576028,1735109432700,-500.0,9.798e-05,2]
[346576029,1735109432710,-500.0,9.798e-05,2]
[346576030,1735109432719,-770.79,9.798e-05,2]
[346576031,1735109432728,-1014.27,9.798e-05,2]
[346576032,1735109432737,-507.11,9.798e-05,2]
[346576033,1735109432746,-500.0,9.798e-05,2]
[346576034,1735109432756,-500.0,9.798e-05,2]
[346576035,1735109432765,-702.58,9.798e-05,2]
[346576036,1735109432773,-993.84,9.798e-05,2]